bitfinex-derivatives/quotes_BTCF0:USTF0_20250928
["timestamp","ask_amount","ask_price","bid_price","bid_amount"]
[1759079118212,0.02291,110380.0,110370.0,0.82633145]
[1759079118915,1.25341144,110390.0,110380.0,0.1261452]
[1759079119107,1.2208008,110390.0,110380.0,0.46499325]
[1759079119303,0.3932408,110390.0,110380.0,0.46499325]
[1759079120314,0.0114208,110390.0,110380.0,0.46499325]
[1759079120514,0.51991575,110400.0,110390.0,0.103267]
[1759079120712,0.51991575,110400.0,110390.0,0.46498505]
[1759079120909,1.34743575,110400.0,110390.0,0.46498505]
[1759079121313,0.51027736,110400.0,110390.0,0.46498505]
[1759079121510,1.33775736,110400.0,110390.0,0.46498505]
[1759079122012,0.49697736,110400.0,110390.0,0.46498505]
[1759079122611,0.46436672,110400.0,110390.0,0.46498505]
[1759079125313,0.10356672,110400.0,110390.0,0.46498505]
[1759079126313,0.10356672,110400.0,110390.0,0.46463007]
[1759079127018,0.44205979,110400.0,110390.0,0.126137]
[1759079127207,0.45490979,110400.0,110390.0,0.45192007]
[1759079127411,1.64475166,110400.0,110390.0,0.090557]
[1759079127606,1.64475166,110400.0,110390.0,0.45192007]
[1759079127809,1.64475166,110400.0,110390.0,0.113427]
[1759079128012,0.96776552,110400.0,110390.0,0.113427]
[1759079128212,1.64475166,110400.0,110390.0,0.113427]
[1759079132427,1.64475166,110400.0,110390.0,0.45192007]
[1759079132618,1.6773623,110400.0,110390.0,0.45192007]
[1759079133420,0.103407,110390.0,110380.0,0.0905594]
[1759079133625,1.98941314,110390.0,110380.0,0.0905594]
[1759079133816,2.42202378,110390.0,110380.0,0.0905594]
[1759079134522,2.42222378,110390.0,110380.0,0.1134294]
[1759079134920,2.42222378,110390.0,110380.0,0.0905594]
[1759079136026,2.42222378,110390.0,110380.0,0.1134294]
[1759079137526,1.59482378,110390.0,110380.0,0.1134294]
[1759079137715,2.42218378,110390.0,110380.0,0.1134294]
[1759079138520,2.42210378,110390.0,110380.0,0.1134294]
[1759079139213,2.08361071,110390.0,110380.0,0.1134294]
[1759079139414,1.68361071,110390.0,110380.0,0.1134294]
[1759079139825,2.02210378,110390.0,110380.0,0.1134294]
[1759079140127,2.0710275,110390.0,110380.0,0.1134294]
[1759079141027,1.2437475,110390.0,110380.0,0.0905594]
[1759079141226,2.0709875,110390.0,110380.0,0.0905594]
[1759079141723,2.0707875,110390.0,110380.0,0.0905594]
[1759079141929,1.73221443,110390.0,110380.0,0.1134294]
[1759079143130,1.39372136,110390.0,110380.0,0.1134294]
[1759079143325,1.73225443,110390.0,110380.0,0.1134294]
[1759079144028,1.73225443,110390.0,110380.0,0.0905594]
[1759079144535,0.90525443,110390.0,110380.0,0.0905594]
[1759079144722,1.73197443,110390.0,110380.0,0.1134294]
[1759079145323,1.73197443,110390.0,110380.0,0.0905594]
[1759079145728,1.73213443,110390.0,110380.0,0.0905594]
[1759079145929,1.73213443,110390.0,110380.0,0.1134294]
[1759079146132,1.73209443,110390.0,110380.0,0.1134294]
[1759079146426,0.90525443,110390.0,110380.0,0.1134294]
[1759079146633,0.81469743,110390.0,110380.0,0.1134294]
[1759079146835,1.64153743,110390.0,110380.0,0.1134294]
[1759079147028,0.81469743,110390.0,110380.0,0.1134294]
[1759079147226,1.64165743,110390.0,110380.0,0.1134294]
[1759079147629,1.64165743,110390.0,110380.0,0.45192247]
[1759079148036,0.81469743,110390.0,110380.0,0.45192247]
[1759079148235,1.64157743,110390.0,110380.0,0.1134294]
[1759079148636,1.73213443,110390.0,110380.0,0.1134294]
[1759079149236,1.73213443,110390.0,110380.0,0.45192247]
[1759079149433,0.90525443,110390.0,110380.0,0.45192247]
[1759079149630,1.73213443,110390.0,110380.0,0.45192247]
[1759079150232,1.73201443,110390.0,110380.0,0.45192247]
[1759079150633,1.73201443,110390.0,110380.0,0.1134294]
[1759079151240,0.90525443,110390.0,110380.0,0.1134294]
[1759079151438,1.64125743,110390.0,110380.0,0.1134294]
[1759079151631,1.64125743,110390.0,110380.0,0.45192247]
[1759079152745,1.64117743,110390.0,110380.0,0.45192247]
[1759079155648,1.73173443,110390.0,110380.0,0.45192247]
[1759079156453,0.47620436,110390.0,110380.0,0.1263094]
[1759079156753,0.47620436,110390.0,110380.0,0.80329554]
[1759079156754,0.87975064,110390.0,110380.0,0.80329554]
[1759079157155,0.05363064,110390.0,110380.0,0.80329554]
[1759079157665,0.05363064,110390.0,110380.0,1.20329554]
[1759079158049,0.06624064,110390.0,110380.0,1.20329554]
[1759079158251,0.03363,110390.0,110380.0,1.20329554]
[1759079158451,0.02102,110390.0,110380.0,1.20329554]
[1759079161158,1.37225108,110400.0,110390.0,0.125847]
[1759079161364,1.32332736,110400.0,110390.0,0.46434007]
[1759079161970,0.49732736,110400.0,110390.0,0.46434007]
[1759079162158,1.32332736,110400.0,110390.0,0.46434007]
[1759079162559,1.29071672,110400.0,110390.0,0.46434007]
[1759079162866,0.1527991,110400.0,110390.0,0.86434007]
[1759079163066,0.0815449,110400.0,110390.0,0.86434007]
[1759079163768,0.0815449,110400.0,110390.0,1.22514007]
[1759079164169,0.11411336,110400.0,110390.0,1.22514007]
[1759079165262,0.05393846,110400.0,110390.0,1.22514007]
[1759079165959,0.03256846,110400.0,110390.0,1.56363314]
[1759079166770,0.45286548,110410.0,110400.0,0.1258388]
[1759079166966,0.45286548,110410.0,110400.0,0.80282494]
[1759079167372,0.4039831,110410.0,110400.0,0.80282494]
[1759079167572,0.4253531,110410.0,110400.0,0.80282494]
[1759079170077,0.4253531,110410.0,110400.0,0.1258388]
[1759079170376,0.0645531,110410.0,110400.0,0.80282494]
[1759079172677,0.03198464,110410.0,110400.0,0.80282494]
[1759079177380,0.03198464,110410.0,110400.0,1.62826494]
[1759079181584,0.03198464,110410.0,110400.0,1.98906494]
[1759079182782,0.01061464,110410.0,110400.0,1.98906494]
[1759079183085,0.82769357,110420.0,110410.0,0.1244506]
[1759079183284,0.82769357,110420.0,110410.0,0.46294367]
[1759079183885,0.5001376,110420.0,110410.0,0.46294367]
[1759079184087,0.83863067,110420.0,110410.0,0.46294367]
[1759079184280,0.5001376,110420.0,110410.0,0.46294367]
[1759079184580,0.46756914,110420.0,110410.0,0.46294367]
[1759079185285,0.5001376,110420.0,110410.0,0.46294367]
[1759079186285,0.5001376,110420.0,110410.0,0.46282428]
[1759079186686,0.10676914,110420.0,110410.0,0.46282428]
[1759079186982,0.1393376,110420.0,110410.0,0.46282428]
[1759079194991,0.1162676,110420.0,110410.0,1.22362428]
[1759079195285,0.03256846,110430.0,110410.0,0.86282428]
[1759079195491,0.09198266,110430.0,110420.0,0.46281608]
[1759079195784,0.04310028,110430.0,110420.0,0.82361608]
[1759079196090,0.06617028,110430.0,110420.0,0.82361608]
[1759079196293,0.06423116,110430.0,110420.0,1.22361608]
[1759079196788,0.06423116,110430.0,110420.0,1.7186424]
[1759079197084,0.03161253,110430.0,110420.0,0.8852424]
[1759079197287,0.03161253,110430.0,110420.0,2.06813608]
[1759079197476,0.02113088,110430.0,110420.0,1.7297624]
[1759079197790,0.02113088,110430.0,110420.0,0.8852424]
[1759079197984,0.02113088,110430.0,110420.0,1.22361608]
[1759079198181,0.02113088,110430.0,110420.0,2.06881608]
[1759079198677,0.02113088,110430.0,110420.0,1.7305624]
[1759079198884,0.02113088,110430.0,110420.0,2.06893608]
[1759079199489,0.02113088,110430.0,110420.0,1.66901608]
[1759079200490,0.02113088,110430.0,110420.0,0.4852424]
[1759079200682,0.02113088,110430.0,110420.0,1.66905608]
[1759079200882,0.02113088,110430.0,110420.0,0.82361608]
[1759079201083,0.02113088,110430.0,110420.0,2.06905608]
[1759079201488,0.02113088,110430.0,110420.0,1.7306824]
[1759079201688,0.02113088,110430.0,110420.0,2.06905608]
[1759079201891,0.02113088,110430.0,110420.0,1.66905608]
[1759079204899,0.02113088,110430.0,110420.0,1.3306824]
[1759079205194,0.02113088,110430.0,110420.0,1.66905608]
[1759079205593,0.02113088,110430.0,110420.0,1.3306824]
[1759079205795,0.02113088,110430.0,110420.0,1.66905608]
[1759079206493,0.05748088,110430.0,110420.0,1.3310424]
[1759079206697,0.04420088,110430.0,110420.0,1.66941608]
[1759079206891,0.04420088,110430.0,110420.0,0.82361608]
[1759079207199,0.04420088,110430.0,110420.0,1.30969568]
[1759079207200,0.41828088,110430.0,110420.0,1.30969568]
[1759079207505,0.41828088,110430.0,110420.0,0.124442]
[1759079207693,0.41828088,110430.0,110420.0,0.971802]
[1759079207997,0.41828088,110430.0,110420.0,1.31017568]
[1759079208503,0.75665456,110430.0,110420.0,0.111812]
[1759079208696,0.78922302,110430.0,110420.0,0.959732]
[1759079208895,0.78922302,110430.0,110420.0,0.111812]
[1759079209792,0.87974682,110430.0,110420.0,0.111812]
[1759079210093,0.78922302,110430.0,110420.0,0.111812]
[1759079210299,0.45084934,110430.0,110420.0,0.111812]
[1759079210501,0.45084934,110430.0,110420.0,0.46288568]
[1759079210989,0.45084934,110430.0,110420.0,1.31124568]
[1759079211399,0.43756934,110430.0,110420.0,1.31124568]
[1759079211906,0.40500088,110430.0,110420.0,1.31124568]
[1759079212087,0.41887088,110430.0,110420.0,0.111812]
[1759079212287,0.03597,110420.0,110410.0,0.1135852]
[1759079212501,0.03597,110410.0,110400.0,0.45196708]
[1759079212802,0.42933846,110410.0,110400.0,1.30116708]
[1759079212992,0.45046934,110410.0,110400.0,1.30116708]
[1759079213405,0.45046934,110410.0,110400.0,0.9627934]
[1759079213698,0.45046934,110410.0,110400.0,1.31386708]
[1759079214289,0.07579934,110410.0,110400.0,1.31386708]
[1759079214502,0.07579934,110410.0,110400.0,1.67466708]
[1759079214689,0.07579934,110410.0,110400.0,1.31386708]
[1759079214894,0.07579934,110410.0,110400.0,0.1262934]
[1759079215095,0.07579934,110410.0,110400.0,1.31402708]
[1759079215296,0.1625611,110410.0,110400.0,0.45496708]
[1759079215496,0.1486911,110410.0,110400.0,1.67782708]
[1759079215897,0.11612264,110410.0,110400.0,1.31702708]
[1759079216100,0.1486911,110410.0,110400.0,1.31702708]
[1759079216496,0.1625611,110410.0,110400.0,0.45496708]
[1759079216697,0.5233611,110410.0,110400.0,0.45496708]
[1759079217102,1.35227498,110410.0,110400.0,0.003]
[1759079217304,2.2200289,110410.0,110400.0,0.00175716]
[1759079217496,0.03597,110380.0,110370.0,0.1136177]
[1759079217797,0.08963015,110380.0,110370.0,0.45199138]
[1759079218002,0.08963015,110380.0,110370.0,0.1136177]
[1759079218202,0.08963015,110380.0,110370.0,0.45199138]
[1759079218592,0.08963015,110380.0,110370.0,0.1136177]
[1759079218799,0.08963015,110380.0,110370.0,0.81279138]
[1759079219199,0.06756031,110380.0,110370.0,0.81279138]
[1759079219694,0.06756031,110380.0,110370.0,0.81579138]
[1759079220398,0.06756031,110380.0,110370.0,0.81279138]
[1759079220596,0.06756031,110380.0,110370.0,0.1136177]
[1759079220805,0.06756031,110380.0,110370.0,0.45199138]
[1759079221998,0.06756031,110380.0,110370.0,0.1136177]
[1759079222399,0.06756031,110380.0,110370.0,0.45199138]
[1759079222600,0.04642943,110380.0,110370.0,0.45199138]
[1759079223405,0.03255943,110380.0,110370.0,0.46469138]
[1759079224409,0.03255943,110380.0,110370.0,0.82549138]
[1759079225199,0.03255943,110380.0,110370.0,1.16386506]
[1759079225604,0.03255943,110380.0,110370.0,0.82549138]
[1759079225804,0.0221,110380.0,110370.0,1.16386506]
[1759079226410,0.3829,110400.0,110390.0,0.1263067]
[1759079226609,0.3829,110400.0,110390.0,0.46468038]
[1759079226809,0.40325397,110400.0,110390.0,0.46468038]
[1759079227004,0.0221,110400.0,110390.0,0.46468038]
[1759079227509,0.0221,110400.0,110390.0,0.1263067]
[1759079227710,0.0221,110400.0,110390.0,0.46468038]
[1759079228305,0.46565846,110410.0,110400.0,0.0905485]
[1759079228512,0.46641978,110410.0,110400.0,0.80304586]
[1759079228811,0.46641978,110410.0,110400.0,0.46467218]
[1759079229313,0.10561978,110410.0,110400.0,0.82547218]
[1759079231411,0.10861978,110410.0,110400.0,0.82547218]
[1759079232614,0.12898536,110410.0,110400.0,0.82547218]
[1759079232825,0.14263536,110410.0,110400.0,0.82547218]
[1759079233617,0.50343536,110410.0,110400.0,0.46467218]
[1759079233818,0.50343536,110410.0,110400.0,0.0905485]
[1759079234020,0.90343536,110410.0,110400.0,0.45055218]
[1759079235723,0.90343536,110410.0,110400.0,0.42892218]
[1759079236221,0.90343536,110410.0,110400.0,0.0905485]
[1759079236824,0.90343536,110410.0,110400.0,0.1121785]
[1759079237017,0.90343536,110410.0,110400.0,0.0905485]
[1759079237624,1.33234934,110410.0,110400.0,0.0905485]
[1759079238122,0.0905498,110400.0,110390.0,0.0905512]
[1759079238315,1.69132906,110400.0,110390.0,0.0905512]
[1759079239025,0.1258267,110390.0,110380.0,0.1134589]
[1759079239325,0.41643558,110390.0,110380.0,0.45183258]
[1759079239623,0.41643558,110390.0,110380.0,0.46539258]
[1759079239823,0.41643558,110390.0,110380.0,0.1270189]
[1759079240033,0.41643558,110390.0,110380.0,0.46539258]
[1759079241127,0.41643558,110390.0,110380.0,0.46639258]
[1759079242327,1.27215558,110390.0,110380.0,0.46639258]
[1759079242722,1.36271248,110390.0,110380.0,0.1280189]
[1759079243023,1.27215558,110390.0,110380.0,0.46639258]
[1759079244021,1.27215558,110390.0,110380.0,0.1144589]
[1759079244227,1.36271248,110390.0,110380.0,0.1144589]
[1759079244432,1.70108616,110390.0,110380.0,0.1144589]
[1759079246222,1.27215558,110390.0,110380.0,0.1144589]
[1759079246922,1.61052926,110390.0,110380.0,0.1144589]
[1759079247319,0.75480926,110390.0,110380.0,0.1144589]
[1759079247519,1.27135558,110390.0,110380.0,0.46639258]
[1759079247725,1.27135558,110390.0,110380.0,0.1280189]
[1759079247924,1.27135558,110390.0,110380.0,0.46639258]
[1759079248422,1.27135558,110390.0,110380.0,0.46660458]
[1759079248626,1.60994126,110390.0,110380.0,0.46660458]
[1759079250225,1.27135558,110390.0,110380.0,0.46660458]
[1759079250426,1.61006126,110390.0,110380.0,0.46660458]
[1759079250931,0.41643558,110390.0,110380.0,0.45304458]
[1759079251133,1.61002126,110390.0,110380.0,0.45304458]
[1759079251431,1.27143558,110390.0,110380.0,0.46660458]
[1759079251628,1.61002126,110390.0,110380.0,0.46660458]
[1759079252037,1.25760558,110390.0,110380.0,0.80519026]
[1759079252330,1.59619126,110390.0,110380.0,0.80519026]
[1759079252522,1.59619126,110390.0,110380.0,0.1280189]
[1759079252723,1.59619126,110390.0,110380.0,0.80519026]
[1759079252923,1.59623126,110390.0,110380.0,0.80519026]
[1759079253220,1.59639126,110390.0,110380.0,0.80519026]
[1759079254032,1.23559126,110390.0,110380.0,0.80519026]
[1759079254825,1.23559126,110390.0,110380.0,0.46660458]
[1759079255031,1.23559126,110390.0,110380.0,0.1280189]
[1759079255222,1.23559126,110390.0,110380.0,0.46660458]
[1759079256233,1.23563126,110390.0,110380.0,0.46660458]
[1759079256534,1.70085816,110390.0,110380.0,0.46660458]
[1759079257328,1.27171558,110390.0,110380.0,0.46660458]
[1759079257529,1.59643126,110390.0,110380.0,0.46660458]
[1759079257925,1.61030126,110390.0,110380.0,0.46660458]
[1759079258436,1.61030126,110390.0,110380.0,0.1280189]
[1759079258636,1.70085806,110390.0,110380.0,0.46660458]
[1759079258934,1.70085806,110390.0,110380.0,0.45304458]
[1759079259541,1.70085806,110390.0,110380.0,0.1144589]
[1759079259841,1.39480165,110390.0,110380.0,0.0915589]
[1759079260033,2.07197301,110390.0,110380.0,0.0915589]
[1759079263242,2.47197301,110390.0,110380.0,0.001]
[1759079263541,2.47197301,110390.0,110380.0,0.091565]
[1759079265338,2.47197301,110390.0,110380.0,0.001]
[1759079265745,0.124835,110380.0,110370.0,0.0905705]
[1759079266042,1.21574759,110380.0,110370.0,0.0905705]
[1759079267545,1.21574759,110380.0,110370.0,0.0945705]
[1759079268145,1.63647554,110380.0,110370.0,0.004]
[1759079268446,1.63647554,110380.0,110370.0,0.006]
[1759079269247,2.49071554,110380.0,110370.0,0.006]
[1759079269444,1.63647554,110380.0,110370.0,0.0965732]
[1759079269743,2.49071554,110380.0,110370.0,0.0965732]
[1759079270053,2.49071554,110380.0,110370.0,0.0945732]
[1759079270547,2.49303554,110380.0,110370.0,0.0905732]
[1759079271255,0.1267069,110370.0,110360.0,0.0905749]
[1759079271457,0.84645816,110370.0,110360.0,0.0905749]
[1759079272342,0.1174615,110360.0,110350.0,0.1119416]
[1759079272543,1.93977694,110360.0,110350.0,0.1119416]
[1759079272744,1.08521694,110360.0,110350.0,0.1119416]
[1759079273046,1.94017694,110360.0,110350.0,0.45052728]
[1759079273250,2.03075844,110360.0,110350.0,0.1119416]
[1759079273443,2.03075844,110360.0,110350.0,0.0905816]
[1759079273748,2.10343685,110360.0,110350.0,0.0905816]
[1759079274245,2.10243685,110360.0,110350.0,0.0905816]
[1759079274747,1.24747685,110360.0,110350.0,0.0905816]
[1759079274952,2.10271685,110360.0,110350.0,0.0945816]
[1759079275148,1.24747685,110360.0,110350.0,0.0945816]
[1759079275343,1.24747685,110360.0,110350.0,0.46825728]
[1759079275344,1.15689535,110360.0,110350.0,0.46825728]
[1759079275553,1.67330967,110360.0,110350.0,0.47025728]
[1759079275739,0.81830967,110360.0,110350.0,0.47025728]
[1759079275941,1.67326967,110360.0,110350.0,0.47025728]
[1759079276446,1.76385107,110360.0,110350.0,0.1179416]
[1759079276653,1.76385107,110360.0,110350.0,0.45652728]
[1759079277142,1.76385107,110360.0,110350.0,0.1179416]
[1759079277335,2.10243675,110360.0,110350.0,0.43516728]
[1759079277540,2.10243675,110360.0,110350.0,0.0965816]
[1759079277952,1.24747675,110360.0,110350.0,0.0965816]
[1759079278143,2.10251675,110360.0,110350.0,0.1179416]
[1759079278750,2.01177535,110360.0,110350.0,0.45652728]
[1759079279748,2.01177535,110360.0,110350.0,0.1179416]
[1759079280046,2.10235675,110360.0,110350.0,0.45652728]
[1759079280454,1.76377107,110360.0,110350.0,0.45652728]
[1759079281555,0.90889107,110360.0,110350.0,0.45652728]
[1759079281852,1.76349107,110360.0,110350.0,0.45652728]
[1759079282252,0.90889107,110360.0,110350.0,0.45652728]
[1759079282553,1.76301097,110360.0,110350.0,0.45652728]
[1759079283255,1.67242967,110360.0,110350.0,0.45652728]
[1759079283453,1.67275715,110360.0,110350.0,0.45652728]
[1759079283754,1.33417147,110360.0,110350.0,0.45652728]
[1759079283954,1.67275715,110360.0,110350.0,0.47025728]
[1759079284555,1.67275715,110360.0,110350.0,0.46725728]
[1759079284856,1.66911715,110360.0,110350.0,0.46725728]
[1759079285758,1.66895715,110360.0,110350.0,0.46525728]
[1759079286651,1.66883715,110360.0,110350.0,0.46525728]
[1759079287851,0.81523715,110360.0,110350.0,0.46525728]
[1759079288058,1.66867715,110360.0,110350.0,0.46525728]
[1759079288853,0.81523715,110360.0,110350.0,0.46525728]
[1759079289059,1.66831715,110360.0,110350.0,0.46525728]
[1759079290656,0.81523715,110360.0,110350.0,0.46525728]
[1759079290853,0.81523715,110360.0,110350.0,0.86525728]
[1759079291058,1.30723715,110360.0,110350.0,0.86525728]
[1759079293557,0.96865147,110360.0,110350.0,0.86525728]
[1759079293950,0.96865147,110360.0,110350.0,0.5266716]
[1759079294254,0.96865147,110360.0,110350.0,0.86525728]
[1759079296364,1.66803715,110360.0,110350.0,0.86525728]
[1759079296657,1.66803715,110360.0,110350.0,1.56464296]
[1759079296658,0.09337147,110360.0,110350.0,1.56464296]
[1759079296857,0.02069306,110360.0,110350.0,2.41680296]
[1759079297063,0.02069306,110360.0,110350.0,1.56464296]
[1759079297256,0.02069306,110360.0,110350.0,2.46579075]
[1759079298464,0.02069306,110360.0,110350.0,2.46555075]
[1759079299755,0.02069306,110360.0,110350.0,2.41680296]
[1759079300465,0.83221004,110360.0,110350.0,0.46525728]
[1759079300760,0.40304306,110360.0,110350.0,0.46525728]
[1759079301254,0.04224306,110360.0,110350.0,0.46525728]
[1759079301463,0.02069306,110360.0,110350.0,1.56464296]
[1759079301764,0.98856565,110380.0,110370.0,0.1042731]
[1759079301965,0.40320239,110380.0,110370.0,0.46389878]
[1759079302662,0.04240239,110380.0,110370.0,0.46389878]
[1759079303063,0.11526324,110380.0,110370.0,0.46389878]
[1759079304260,0.12026324,110380.0,110370.0,0.46389878]
[1759079309165,0.12026324,110380.0,110370.0,0.1253131]
[1759079309370,0.12026324,110380.0,110370.0,0.46389878]
[1759079310270,0.12026324,110380.0,110370.0,0.46391789]
[1759079310764,0.12026324,110380.0,110370.0,0.1253131]
[1759079310969,0.12026324,110380.0,110370.0,0.46391789]
[1759079312569,0.12026324,110380.0,110370.0,0.1253131]
[1759079312771,0.12026324,110380.0,110370.0,0.46391789]
[1759079314763,0.09871324,110380.0,110370.0,0.46391789]
[1759079315264,0.02585239,110380.0,110370.0,1.20252268]
[1759079315466,0.02585239,110380.0,110370.0,0.86391789]
[1759079315870,0.02585239,110380.0,110370.0,1.71443789]
[1759079316870,0.02585239,110380.0,110370.0,0.86391789]
[1759079317071,0.02585239,110380.0,110370.0,1.71395789]
[1759079318274,0.04740239,110380.0,110370.0,0.1253131]
[1759079318569,0.04740239,110380.0,110370.0,0.46391789]
[1759079318770,0.85024208,110380.0,110370.0,0.1116131]
[1759079319067,0.0905731,110370.0,110360.0,0.1253157]
[1759079319276,0.92003527,110370.0,110360.0,0.1116157]
[1759079319579,0.82946217,110370.0,110360.0,0.1116157]
[1759079319866,1.68114217,110370.0,110360.0,0.1116157]
[1759079320372,1.68314217,110370.0,110360.0,0.1116157]
[1759079321367,1.34453738,110370.0,110360.0,0.1116157]
[1759079321570,1.68314217,110370.0,110360.0,0.1116157]
[1759079322364,2.51232006,110370.0,110360.0,0.0905757]
[1759079322575,2.17371527,110370.0,110360.0,0.0905757]
[1759079322874,2.08314217,110370.0,110360.0,0.0905757]
[1759079323172,2.08314217,110370.0,110360.0,0.1116157]
[1759079323565,2.08402217,110370.0,110360.0,0.1116157]
[1759079325167,0.1260095,110350.0,110340.0,0.11170569]
[1759079325372,1.69882668,110350.0,110340.0,0.11170569]
[1759079325865,1.69882668,110350.0,110340.0,0.09066569]
[1759079326271,1.60823718,110350.0,110340.0,0.09266569]
[1759079326461,1.60823718,110350.0,110340.0,0.11370569]
[1759079326666,0.75567718,110350.0,110340.0,0.11370569]
[1759079326861,1.60899718,110350.0,110340.0,0.11370569]
[1759079327667,0.75567718,110350.0,110340.0,0.11770569]
[1759079327867,1.60919718,110350.0,110340.0,0.11770569]
[1759079328067,0.75567718,110350.0,110340.0,0.11770569]
[1759079328270,1.60915718,110350.0,110340.0,0.11770569]
[1759079329676,0.75567718,110350.0,110340.0,0.11570569]
[1759079329872,1.60915718,110350.0,110340.0,0.11570569]
[1759079330269,0.76067718,110350.0,110340.0,0.11170569]
[1759079330474,1.61407718,110350.0,110340.0,0.11170569]
[1759079330975,0.76067718,110350.0,110340.0,0.11170569]
[1759079331173,1.61407718,110350.0,110340.0,0.11170569]
[1759079331477,1.61391718,110350.0,110340.0,0.11170569]
[1759079332376,1.61379718,110350.0,110340.0,0.11170569]
[1759079334073,0.76067718,110350.0,110340.0,0.11170569]
[1759079334372,1.61343718,110350.0,110340.0,0.11170569]
[1759079334772,0.42207239,110350.0,110340.0,0.12436569]
[1759079334973,1.59940718,110350.0,110340.0,0.12436569]
[1759079337081,0.74680718,110350.0,110340.0,0.12436569]
[1759079337275,1.59944718,110350.0,110340.0,0.12436569]
[1759079337475,0.04740239,110350.0,110340.0,0.86297048]
[1759079337677,9e-08,110350.0,110340.0,1.56237527]
[1759079339776,0.02176009,110350.0,110340.0,0.12436569]
[1759079339971,0.02176009,110350.0,110340.0,0.46297048]
[1759079341684,0.02176009,110350.0,110340.0,0.86297048]
[1759079341981,0.02176009,110350.0,110340.0,1.22377048]
[1759079343682,0.02176009,110350.0,110340.0,0.86297048]
[1759079349689,0.04274796,110350.0,110340.0,0.86297048]
[1759079350389,0.02098796,110350.0,110340.0,0.86297048]
[1759079350689,0.04274796,110350.0,110340.0,0.86297048]
[1759079350889,0.04274796,110350.0,110340.0,0.52436569]
[1759079351088,0.04274796,110350.0,110340.0,0.86297048]
[1759079352686,0.02098796,110350.0,110340.0,0.86297048]
[1759079353189,0.02098796,110350.0,110340.0,1.22377048]
[1759079355195,0.02098796,110350.0,110340.0,1.56237527]
[1759079355494,0.02098796,110350.0,110340.0,1.22377048]
[1759079357895,0.02098796,110350.0,110340.0,2.07645048]
[1759079358794,0.02098796,110350.0,110340.0,2.41505527]
[1759079358994,0.02098796,110350.0,110340.0,2.46380306]
[1759079359790,0.12831064,110370.0,110360.0,0.0905813]
[1759079360103,0.07400499,110370.0,110360.0,0.46299609]
[1759079360306,1.26746565,110380.0,110370.0,0.1243831]
[1759079360604,1.26746565,110380.0,110370.0,0.46298789]
[1759079360806,0.41510565,110380.0,110370.0,0.46298789]
[1759079361603,0.05430565,110380.0,110370.0,0.46298789]
[1759079361805,0.02173,110380.0,110370.0,0.46298789]
[1759079362197,0.05430565,110380.0,110370.0,0.46298789]
[1759079362401,0.02173,110380.0,110370.0,0.46298789]
[1759079362809,0.09301884,110380.0,110370.0,0.46298789]
[1759079363904,0.07128884,110380.0,110370.0,0.46298789]
[1759079364106,1.2875167,110390.0,110380.0,0.1243749]
[1759079365504,0.41510565,110390.0,110380.0,0.46297969]
[1759079365904,0.3608,110390.0,110380.0,0.46297969]
[1759079366311,1.26566565,110400.0,110390.0,0.1243667]
[1759079366513,1.26566565,110400.0,110390.0,0.46297149]
[1759079367505,1.33789762,110400.0,110390.0,0.46297149]
[1759079369301,1.30532197,110400.0,110390.0,0.46297149]
[1759079369713,0.97709762,110400.0,110390.0,0.82377149]
[1759079370213,0.94452197,110400.0,110390.0,0.82365831]
[1759079371109,1.28301358,110400.0,110390.0,0.1243667]
[1759079371310,0.79325358,110400.0,110390.0,0.46285831]
[1759079371510,1.64273358,110400.0,110390.0,0.46285831]
[1759079371816,1.66353873,110400.0,110390.0,0.46285831]
[1759079372719,1.69611438,110400.0,110390.0,0.46285831]
[1759079377718,1.69611438,110400.0,110390.0,0.1243667]
[1759079378016,1.69611438,110400.0,110390.0,0.46285831]
[1759079378711,2.52514762,110400.0,110390.0,0.1243667]
[1759079378908,2.52514762,110400.0,110390.0,0.0905567]
[1759079379107,0.0905569,110390.0,110380.0,0.03381]
[1759079379312,0.1249433,110370.0,110360.0,0.1032565]
[1759079379512,0.75445969,110370.0,110360.0,0.1117065]
[1759079379917,0.41596808,110370.0,110360.0,0.1117065]
[1759079380220,0.75445969,110370.0,110360.0,0.1117065]
[1759079380518,0.75445969,110370.0,110360.0,0.46287811]
[1759079380718,0.41596808,110370.0,110360.0,0.46287811]
[1759079380921,0.75445969,110370.0,110360.0,0.46287811]
[1759079383117,0.75445969,110370.0,110360.0,0.1117065]
[1759079383326,0.84503299,110370.0,110360.0,0.45019811]
[1759079383916,0.0905815,110360.0,110350.0,0.090589]
[1759079384121,0.03437,110350.0,110340.0,0.11179409]
[1759079384424,0.75445969,110350.0,110340.0,0.11179409]
[1759079384928,0.82677511,110350.0,110340.0,0.11179409]
[1759079385117,0.82377511,110350.0,110340.0,0.11179409]
[1759079385818,1.67081511,110350.0,110340.0,0.11179409]
[1759079386021,0.82377511,110350.0,110340.0,0.11179409]
[1759079386318,1.67057511,110350.0,110340.0,0.11179409]
[1759079386521,1.67061511,110350.0,110340.0,0.11379409]
[1759079387026,1.67061511,110350.0,110340.0,0.13047409]
[1759079387423,0.82377511,110350.0,110340.0,0.13047409]
[1759079387627,1.67025511,110350.0,110340.0,0.13047409]
[1759079388628,1.67017511,110350.0,110340.0,0.13047409]
[1759079388827,1.67017511,110350.0,110340.0,0.4689657]
[1759079389029,1.67029511,110350.0,110340.0,0.4689657]
[1759079389928,0.82377511,110350.0,110340.0,0.4689657]
[1759079390129,0.46297511,110350.0,110340.0,0.8297657]
[1759079390329,1.30969511,110350.0,110340.0,0.8297657]
[1759079390528,1.29993511,110350.0,110340.0,0.8297657]
[1759079392034,0.45333511,110350.0,110340.0,0.8297657]
[1759079392226,1.29957511,110350.0,110340.0,0.8297657]
[1759079392630,1.29949511,110350.0,110340.0,0.8297657]
[1759079393232,0.00115578,110350.0,110340.0,1.90674892]
[1759079393433,0.38252,110370.0,110360.0,0.1263915]
[1759079393634,0.77704,110370.0,110360.0,0.80337472]
[1759079394128,0.84977704,110370.0,110360.0,0.80337472]
[1759079394431,0.45525704,110370.0,110360.0,0.80337472]
[1759079394632,1.30277704,110370.0,110360.0,0.80337472]
[1759079395025,1.30277704,110370.0,110360.0,0.46488311]
[1759079395333,1.64130865,110370.0,110360.0,0.46488311]
[1759079397235,0.79474865,110370.0,110360.0,0.46488311]
[1759079397436,0.45625704,110370.0,110360.0,0.80337472]
[1759079397631,1.30297704,110370.0,110360.0,0.80337472]
[1759079398933,1.64146865,110370.0,110360.0,0.46488311]
[1759079400335,0.43453704,110370.0,110360.0,1.20337472]
[1759079400643,0.001,110370.0,110360.0,1.56417472]
[1759079403840,0.001,110370.0,110360.0,2.40949472]
[1759079404235,0.001,110370.0,110360.0,0.8871915]
[1759079404438,0.001,110370.0,110360.0,2.40921472]
[1759079405141,0.001,110370.0,110360.0,1.56417472]
[1759079405339,0.001,110370.0,110360.0,2.40933472]
[1759079406340,0.001,110370.0,110360.0,1.56417472]
[1759079406542,0.001,110370.0,110360.0,2.40933472]
[1759079407242,0.02176672,110370.0,110360.0,2.40933472]
[1759079412744,0.001,110370.0,110360.0,2.40933472]
[1759079413141,0.001,110370.0,110360.0,1.7310715]
[1759079413443,0.001,110370.0,110360.0,2.40793472]